[Event "Late-Titled-Tuesday-Blitz-December-26-2023"]
[Site "Chess.com"]
[Date "2023.12.26"]
[Round "8"]
[White "PapaieDudu"]
[Black "IgorBjelobrk"]
[Result "0-1"]
[WhiteElo "2500"]
[BlackElo "2666"]
[TimeControl "180+1"]
[EndTime "15:28:46 PST"]
[Termination "IgorBjelobrk won by checkmate"]

1. e4 {[%clk 0:03:00.9]} 1... e6 {[%clk 0:02:58.4]} 2. Nf3 {[%clk 0:03:00.4]}
2... d5 {[%clk 0:02:58.2]} 3. e5 {[%clk 0:02:57.2]} 3... c5 {[%clk 0:02:54]} 4.
c4 {[%clk 0:02:52.1]} 4... Nc6 {[%clk 0:02:52.1]} 5. cxd5 {[%clk 0:02:49.1]}
5... exd5 {[%clk 0:02:51.8]} 6. Bb5 {[%clk 0:02:47.5]} 6... Ne7 {[%clk
0:02:46.7]} 7. O-O {[%clk 0:02:46.9]} 7... a6 {[%clk 0:02:45.8]} 8. Ba4 {[%clk
0:02:46.6]} 8... b5 {[%clk 0:02:45.6]} 9. Bc2 {[%clk 0:02:47.1]} 9... Bg4 {[%clk
0:02:43.4]} 10. Re1 {[%clk 0:02:41.5]} 10... Nd4 {[%clk 0:02:36.3]} 11. a4
{[%clk 0:02:16]} 11... Bxf3 {[%clk 0:02:30.5]} 12. gxf3 {[%clk 0:02:16.1]} 12...
b4 {[%clk 0:02:21.5]} 13. b3 {[%clk 0:02:14.1]} 13... Ng6 {[%clk 0:02:12.9]} 14.
d3 {[%clk 0:02:13.3]} 14... Nh4 {[%clk 0:02:09]} 15. Kh1 {[%clk 0:01:56.5]}
15... Nhxf3 {[%clk 0:01:56.5]} 16. Re3 {[%clk 0:01:46.4]} 16... Ng5 {[%clk
0:01:33.3]} 17. f4 {[%clk 0:01:33.8]} 17... Nge6 {[%clk 0:01:32.3]} 18. Bb2
{[%clk 0:01:25.7]} 18... Nf5 {[%clk 0:01:23.8]} 19. Re1 {[%clk 0:01:00.9]} 19...
d4 {[%clk 0:01:16.7]} 20. Qf3 {[%clk 0:00:56.6]} 20... Be7 {[%clk 0:01:16.2]}
21. Nd2 {[%clk 0:00:56.8]} 21... O-O {[%clk 0:01:13.7]} 22. Nc4 {[%clk
0:00:54.8]} 22... g6 {[%clk 0:01:09.8]} 23. a5 {[%clk 0:00:52.6]} 23... Re8
{[%clk 0:01:05.6]} 24. Re4 {[%clk 0:00:47.8]} 24... Bf8 {[%clk 0:01:04.3]} 25.
Rg1 {[%clk 0:00:44.5]} 25... Ra7 {[%clk 0:01:03.8]} 26. Bd1 {[%clk 0:00:43.1]}
26... Kh8 {[%clk 0:00:54.5]} 27. Qf2 {[%clk 0:00:42.5]} 27... Bh6 {[%clk
0:00:53.5]} 28. Bg4 {[%clk 0:00:39.6]} 28... Neg7 {[%clk 0:00:47.5]} 29. Bc1
{[%clk 0:00:30.4]} 29... Rae7 {[%clk 0:00:46.2]} 30. h4 {[%clk 0:00:24.1]} 30...
Rg8 {[%clk 0:00:37.8]} 31. Rg2 {[%clk 0:00:23.2]} 31... Re6 {[%clk 0:00:36.9]}
32. Rh2 {[%clk 0:00:22.2]} 32... f6 {[%clk 0:00:28.6]} 33. Re1 {[%clk
0:00:20.8]} 33... Rge8 {[%clk 0:00:27.1]} 34. Rg1 {[%clk 0:00:16.7]} 34... fxe5
{[%clk 0:00:24.9]} 35. fxe5 {[%clk 0:00:13.3]} 35... Bxc1 {[%clk 0:00:24]} 36.
Rxc1 {[%clk 0:00:14.2]} 36... h5 {[%clk 0:00:19.5]} 37. Bh3 {[%clk 0:00:13.4]}
37... Rxe5 {[%clk 0:00:19.3]} 38. Nxe5 {[%clk 0:00:12.5]} 38... Rxe5 {[%clk
0:00:20.2]} 39. Qf4 {[%clk 0:00:12.4]} 39... Qe7 {[%clk 0:00:19.3]} 40. Rg1
{[%clk 0:00:11.4]} 40... Kh7 {[%clk 0:00:18.9]} 41. Rhg2 {[%clk 0:00:11.3]}
41... Nxh4 {[%clk 0:00:17.3]} 42. Rf2 {[%clk 0:00:09.1]} 42... Re3 {[%clk
0:00:15.7]} 43. Bf1 {[%clk 0:00:08.2]} 43... Ngf5 {[%clk 0:00:15.5]} 44. Rg5
{[%clk 0:00:08]} 44... Qe5 {[%clk 0:00:11.1]} 45. Kh2 {[%clk 0:00:07.5]} 45...
Qxf4+ {[%clk 0:00:10.8]} 46. Rxf4 {[%clk 0:00:08.4]} 46... Nf3+ {[%clk
0:00:11.3]} 47. Rxf3 {[%clk 0:00:08]} 47... Rxf3 {[%clk 0:00:12.2]} 48. Bg2
{[%clk 0:00:08.5]} 48... Rxd3 {[%clk 0:00:12.1]} 49. Bd5 {[%clk 0:00:07.9]}
49... Re3 {[%clk 0:00:11.8]} 50. Rg2 {[%clk 0:00:06.2]} 50... Kh6 {[%clk
0:00:11.4]} 51. Rd2 {[%clk 0:00:06.4]} 51... g5 {[%clk 0:00:11.4]} 52. Bc4
{[%clk 0:00:06.4]} 52... g4 {[%clk 0:00:11.6]} 53. Kg2 {[%clk 0:00:06.9]} 53...
Kg5 {[%clk 0:00:11.9]} 54. Rd1 {[%clk 0:00:06.5]} 54... h4 {[%clk 0:00:12.2]}
55. Bxa6 {[%clk 0:00:06.8]} 55... h3+ {[%clk 0:00:13.1]} 56. Kh2 {[%clk
0:00:07]} 56... Nh4 {[%clk 0:00:12]} 57. Bc4 {[%clk 0:00:05.2]} 57... Nf3+
{[%clk 0:00:11.7]} 58. Kg3 {[%clk 0:00:05.5]} 58... Ne5+ {[%clk 0:00:11.5]} 59.
Kh2 {[%clk 0:00:05.6]} 59... Kh4 {[%clk 0:00:11.5]} 60. a6 {[%clk 0:00:05.5]}
60... g3+ {[%clk 0:00:11.9]} 61. Kg1 {[%clk 0:00:05]} 61... Nf3+ {[%clk
0:00:11.9]} 62. Kf1 {[%clk 0:00:03.5]} 62... g2+ {[%clk 0:00:11.5]} 63. Kf2
{[%clk 0:00:04.1]} 63... g1=Q+ {[%clk 0:00:11.6]} 64. Rxg1 {[%clk 0:00:04.4]}
64... Nxg1 {[%clk 0:00:12.2]} 65. Kxg1 {[%clk 0:00:03.5]} 65... Re7 {[%clk
0:00:11.5]} 66. Kh1 {[%clk 0:00:03.6]} 66... Kg3 {[%clk 0:00:11.8]} 67. Kg1
{[%clk 0:00:03.6]} 67... Re1+ {[%clk 0:00:11.6]} 68. Bf1 {[%clk 0:00:03.3]}
68... h2+ {[%clk 0:00:12.5]} 69. Kh1 {[%clk 0:00:03.2]} 69... Rxf1# {[%clk
0:00:13.4]} 0-1

[Event "Late-Titled-Tuesday-Blitz-December-26-2023"]
[Site "Chess.com"]
[Date "2023.12.26"]
[Round "8"]
[White "GABUZYAN_CHESSMOOD"]
[Black "Jospem"]
[Result "0-1"]
[WhiteElo "2900"]
[BlackElo "3072"]
[TimeControl "180+1"]
[EndTime "15:28:51 PST"]
[Termination "Jospem won by resignation"]

1. e4 {[%clk 0:03:00.9]} 1... c5 {[%clk 0:02:59.9]} 2. Nc3 {[%clk 0:03:00.7]}
2... d6 {[%clk 0:03:00.4]} 3. d4 {[%clk 0:02:56.4]} 3... cxd4 {[%clk 0:03:01.3]}
4. Qxd4 {[%clk 0:02:55.8]} 4... Nc6 {[%clk 0:03:02.2]} 5. Qd2 {[%clk 0:02:54.1]}
5... e6 {[%clk 0:03:02.1]} 6. b3 {[%clk 0:02:53.3]} 6... d5 {[%clk 0:03:02.7]}
7. exd5 {[%clk 0:02:44.8]} 7... exd5 {[%clk 0:03:03.6]} 8. Qxd5 {[%clk
0:02:38.1]} 8... Qf6 {[%clk 0:02:48]} 9. Bd2 {[%clk 0:02:31.2]} 9... Bb4 {[%clk
0:02:36.4]} 10. Qf3 {[%clk 0:02:22.2]} 10... Qe5+ {[%clk 0:02:23.1]} 11. Qe2
{[%clk 0:02:13.9]} 11... Nf6 {[%clk 0:02:05.6]} 12. Nf3 {[%clk 0:02:08.4]} 12...
Qxe2+ {[%clk 0:02:00.1]} 13. Bxe2 {[%clk 0:02:09.3]} 13... O-O {[%clk
0:01:58.6]} 14. a3 {[%clk 0:02:04.7]} 14... Ba5 {[%clk 0:01:53.6]} 15. O-O-O
{[%clk 0:01:59.1]} 15... Bf5 {[%clk 0:01:49.9]} 16. Bc4 {[%clk 0:01:53.2]} 16...
Rac8 {[%clk 0:01:43.5]} 17. Kb2 {[%clk 0:01:49.2]} 17... Bb6 {[%clk 0:01:40.8]}
18. Be3 {[%clk 0:01:42.8]} 18... Bxe3 {[%clk 0:01:27.5]} 19. fxe3 {[%clk
0:01:43.7]} 19... Rfe8 {[%clk 0:01:27.4]} 20. Rhe1 {[%clk 0:01:40.5]} 20... Bg6
{[%clk 0:01:27.2]} 21. e4 {[%clk 0:01:37.8]} 21... Ng4 {[%clk 0:01:21.1]} 22. h3
{[%clk 0:01:34]} 22... Nge5 {[%clk 0:01:19.1]} 23. Bd5 {[%clk 0:01:32.4]} 23...
Bh5 {[%clk 0:01:10.2]} 24. Nb5 {[%clk 0:01:24.5]} 24... Re7 {[%clk 0:01:00.4]}
25. Nxe5 {[%clk 0:01:16]} 25... Nxe5 {[%clk 0:01:01.3]} 26. g4 {[%clk
0:01:15.3]} 26... Bg6 {[%clk 0:01:00.3]} 27. Nd6 {[%clk 0:01:13]} 27... Rb8
{[%clk 0:01:00.2]} 28. Nf5 {[%clk 0:01:07]} 28... Rc7 {[%clk 0:00:55.1]} 29. c4
{[%clk 0:01:02]} 29... h6 {[%clk 0:00:52.1]} 30. Rf1 {[%clk 0:00:58.9]} 30...
Kh7 {[%clk 0:00:52.3]} 31. Rf4 {[%clk 0:00:51.4]} 31... f6 {[%clk 0:00:52.8]}
32. Nd4 {[%clk 0:00:49]} 32... Be8 {[%clk 0:00:50]} 33. Rff1 {[%clk 0:00:45.5]}
33... Bd7 {[%clk 0:00:49]} 34. Nf3 {[%clk 0:00:40.2]} 34... Ng6 {[%clk
0:00:49.3]} 35. e5 {[%clk 0:00:35.6]} 35... fxe5 {[%clk 0:00:37.1]} 36. Be4
{[%clk 0:00:36]} 36... Bc6 {[%clk 0:00:37.8]} 37. Bxg6+ {[%clk 0:00:32]} 37...
Kxg6 {[%clk 0:00:38.7]} 38. Nxe5+ {[%clk 0:00:32.5]} 38... Kh7 {[%clk
0:00:39.5]} 39. Nxc6 {[%clk 0:00:33]} 39... bxc6 {[%clk 0:00:39.7]} 40. Kc3
{[%clk 0:00:32.8]} 40... a5 {[%clk 0:00:38.1]} 41. Rd3 {[%clk 0:00:28.7]} 41...
Rcb7 {[%clk 0:00:38.1]} 42. Kc2 {[%clk 0:00:29.1]} 42... Re7 {[%clk 0:00:29.3]}
43. Rfd1 {[%clk 0:00:28]} 43... Re4 {[%clk 0:00:26.8]} 44. Rd4 {[%clk
0:00:27.8]} 44... Re3 {[%clk 0:00:27.3]} 45. R1d3 {[%clk 0:00:27.6]} 45... Re2+
{[%clk 0:00:27.9]} 46. Rd2 {[%clk 0:00:28.2]} 46... Re3 {[%clk 0:00:28.3]} 47.
R4d3 {[%clk 0:00:28.8]} 47... Re4 {[%clk 0:00:28.9]} 48. Rd6 {[%clk 0:00:29]}
48... a4 {[%clk 0:00:28.8]} 49. b4 {[%clk 0:00:21.5]} 49... Rxc4+ {[%clk
0:00:25.7]} 50. Kd3 {[%clk 0:00:21.9]} 50... Rc1 {[%clk 0:00:26.1]} 51. Rc2
{[%clk 0:00:21.3]} 51... Rd1+ {[%clk 0:00:25.2]} 52. Rd2 {[%clk 0:00:21.7]}
52... Ra1 {[%clk 0:00:25]} 53. Rxc6 {[%clk 0:00:11.5]} 53... Rxa3+ {[%clk
0:00:25.6]} 54. Kc4 {[%clk 0:00:10.9]} 54... Rb3 {[%clk 0:00:25.2]} 55. Rc7
{[%clk 0:00:08.9]} 55... R8xb4+ {[%clk 0:00:25.2]} 56. Kc5 {[%clk 0:00:09.3]}
56... Rb5+ {[%clk 0:00:24.5]} 57. Kc4 {[%clk 0:00:08.5]} 57... Rg5 {[%clk
0:00:25.1]} 58. Rd3 {[%clk 0:00:04.7]} 58... Rxd3 {[%clk 0:00:17.2]} 59. Kxd3
{[%clk 0:00:05.6]} 59... Ra5 {[%clk 0:00:17.6]} 60. Kc2 {[%clk 0:00:06]} 60...
a3 {[%clk 0:00:18.1]} 61. Kb1 {[%clk 0:00:06.3]} 61... a2+ {[%clk 0:00:18.8]}
62. Ka1 {[%clk 0:00:06.2]} 62... Ra3 {[%clk 0:00:19.5]} 63. h4 {[%clk
0:00:05.9]} 63... Ra4 {[%clk 0:00:18]} 64. g5 {[%clk 0:00:06.4]} 64... h5 {[%clk
0:00:17.9]} 65. Rc6 {[%clk 0:00:03.9]} 65... Rxh4 {[%clk 0:00:17.3]} 66. Kxa2
{[%clk 0:00:04.5]} 66... Rg4 {[%clk 0:00:17.8]} 67. Kb3 {[%clk 0:00:04.5]} 67...
Rxg5 {[%clk 0:00:18]} 68. Kc3 {[%clk 0:00:05.1]} 68... Rg6 {[%clk 0:00:18.1]}
69. Rc5 {[%clk 0:00:05.1]} 69... Kh6 {[%clk 0:00:18.5]} 70. Kd3 {[%clk
0:00:05.6]} 70... Rf6 {[%clk 0:00:18.6]} 71. Ke3 {[%clk 0:00:06]} 71... g5
{[%clk 0:00:19]} 72. Ke4 {[%clk 0:00:06.2]} 72... h4 {[%clk 0:00:19.3]} 73. Rc8
{[%clk 0:00:06.8]} 73... Kh5 {[%clk 0:00:19]} 74. Ke5 {[%clk 0:00:06.3]} 74...
Rf1 {[%clk 0:00:19]} 75. Rh8+ {[%clk 0:00:07.1]} 75... Kg4 {[%clk 0:00:19.4]}
76. Ke4 {[%clk 0:00:08]} 76... Re1+ {[%clk 0:00:19.5]} 77. Kd3 {[%clk
0:00:08.3]} 77... Re7 {[%clk 0:00:20]} 78. Kd2 {[%clk 0:00:09.2]} 78... Kg3
{[%clk 0:00:19.8]} 79. Rg8 {[%clk 0:00:09.3]} 79... g4 {[%clk 0:00:20.4]} 80.
Ra8 {[%clk 0:00:10.2]} 80... h3 {[%clk 0:00:20.4]} 81. Ra3+ {[%clk 0:00:11.1]}
81... Kh4 {[%clk 0:00:21]} 82. Ra4 {[%clk 0:00:11.4]} 82... h2 {[%clk
0:00:21.2]} 83. Ra8 {[%clk 0:00:11.1]} 83... Kg3 {[%clk 0:00:21.3]} 84. Ra3+
{[%clk 0:00:11.5]} 84... Kg2 {[%clk 0:00:21.4]} 0-1

[Event "Late-Titled-Tuesday-Blitz-December-26-2023"]
[Site "Chess.com"]
[Date "2023.12.26"]
[Round "8"]
[White "Nf3c5"]
[Black "GP9isback23"]
[Result "0-1"]
[WhiteElo "2511"]
[BlackElo "2644"]
[TimeControl "180+1"]
[EndTime "15:28:59 PST"]
[Termination "GP9isback23 won by resignation"]

1. d4 {[%clk 0:03:00.9]} 1... Nf6 {[%clk 0:02:57.4]} 2. Nf3 {[%clk 0:02:58.2]}
2... e6 {[%clk 0:02:56.7]} 3. e3 {[%clk 0:02:54]} 3... b6 {[%clk 0:02:56.2]} 4.
Bd3 {[%clk 0:02:53.7]} 4... Bb7 {[%clk 0:02:56.6]} 5. O-O {[%clk 0:02:53.9]}
5... Be7 {[%clk 0:02:54.2]} 6. c4 {[%clk 0:02:54.4]} 6... O-O {[%clk 0:02:54.3]}
7. Nc3 {[%clk 0:02:54.9]} 7... d5 {[%clk 0:02:54.4]} 8. cxd5 {[%clk 0:02:54.9]}
8... exd5 {[%clk 0:02:52.5]} 9. b3 {[%clk 0:02:54.5]} 9... c5 {[%clk 0:02:52]}
10. Bb2 {[%clk 0:02:54.5]} 10... Nbd7 {[%clk 0:02:50.5]} 11. Rc1 {[%clk
0:02:54.2]} 11... Bd6 {[%clk 0:02:40.9]} 12. Ne2 {[%clk 0:02:51.9]} 12... Qe7
{[%clk 0:02:38.5]} 13. Ng3 {[%clk 0:02:51.6]} 13... g6 {[%clk 0:02:38.2]} 14.
dxc5 {[%clk 0:02:51.1]} 14... bxc5 {[%clk 0:02:27.4]} 15. Re1 {[%clk 0:02:23.5]}
15... Rfd8 {[%clk 0:02:19.3]} 16. Qe2 {[%clk 0:02:17.2]} 16... Rac8 {[%clk
0:02:15.7]} 17. Ba6 {[%clk 0:02:16.6]} 17... Bxa6 {[%clk 0:01:54.4]} 18. Qxa6
{[%clk 0:02:12.9]} 18... Rc7 {[%clk 0:01:45.1]} 19. Red1 {[%clk 0:01:44.9]}
19... Rdc8 {[%clk 0:01:39.4]} 20. e4 {[%clk 0:01:32.9]} 20... d4 {[%clk
0:01:13]} 21. b4 {[%clk 0:01:30.4]} 21... h5 {[%clk 0:00:29.5]} 22. bxc5 {[%clk
0:01:12.5]} 22... Nxc5 {[%clk 0:00:29.4]} 23. Qc4 {[%clk 0:01:04]} 23... Ncxe4
{[%clk 0:00:28]} 24. Qxd4 {[%clk 0:01:03.9]} 24... Rxc1 {[%clk 0:00:25.5]} 25.
Bxc1 {[%clk 0:01:02.3]} 25... Bc5 {[%clk 0:00:20.6]} 26. Qe5 {[%clk 0:00:44.5]}
26... Bxf2+ {[%clk 0:00:19.5]} 27. Kf1 {[%clk 0:00:43.6]} 27... Nxg3+ {[%clk
0:00:15.4]} 28. hxg3 {[%clk 0:00:43.8]} 28... Qxe5 {[%clk 0:00:13.8]} 29. Nxe5
{[%clk 0:00:44]} 29... Bxg3 {[%clk 0:00:14.3]} 30. Nf3 {[%clk 0:00:41.9]} 30...
Ng4 {[%clk 0:00:13.1]} 31. Bg5 {[%clk 0:00:27.9]} 31... f6 {[%clk 0:00:10.9]}
32. Bd2 {[%clk 0:00:27.6]} 32... Rd8 {[%clk 0:00:10.5]} 33. Ke2 {[%clk
0:00:27.5]} 33... Kf7 {[%clk 0:00:10.2]} 34. Rb1 {[%clk 0:00:27.5]} 34... Rd7
{[%clk 0:00:10.5]} 35. Rb5 {[%clk 0:00:27.5]} 35... Ne5 {[%clk 0:00:10.5]} 36.
Be3 {[%clk 0:00:18.7]} 36... Nxf3 {[%clk 0:00:08.6]} 37. Kxf3 {[%clk 0:00:19.6]}
37... Be5 {[%clk 0:00:08.7]} 38. Ra5 {[%clk 0:00:19.8]} 38... Bb8 {[%clk
0:00:08.3]} 39. Ra6 {[%clk 0:00:20.2]} 39... g5 {[%clk 0:00:06.6]} 40. Ke4
{[%clk 0:00:18.9]} 40... Kg6 {[%clk 0:00:06.8]} 41. Bd4 {[%clk 0:00:17.6]} 41...
Rf7 {[%clk 0:00:05.5]} 42. a4 {[%clk 0:00:15.8]} 42... h4 {[%clk 0:00:05.9]} 43.
Kd5 {[%clk 0:00:15]} 43... g4 {[%clk 0:00:06.3]} 44. Ke4 {[%clk 0:00:14.8]}
44... h3 {[%clk 0:00:06.6]} 45. gxh3 {[%clk 0:00:15.3]} 45... gxh3 {[%clk
0:00:07.5]} 46. Kf3 {[%clk 0:00:15]} 46... Kg5 {[%clk 0:00:06.9]} 47. Be3+
{[%clk 0:00:13.4]} 47... Kg6 {[%clk 0:00:06.8]} 48. Ra5 {[%clk 0:00:13.1]} 48...
Rh7 {[%clk 0:00:05.8]} 49. Bg1 {[%clk 0:00:09.1]} 49... h2 {[%clk 0:00:06.3]}
50. Bxh2 {[%clk 0:00:09.8]} 50... Bxh2 {[%clk 0:00:06.7]} 51. Rb5 {[%clk
0:00:09.9]} 51... Be5 {[%clk 0:00:07.3]} 52. a5 {[%clk 0:00:10.2]} 52... Rc7
{[%clk 0:00:07.4]} 53. Ke4 {[%clk 0:00:10.2]} 53... Kf7 {[%clk 0:00:07.9]} 54.
Kd5 {[%clk 0:00:10]} 54... Ke7 {[%clk 0:00:08.1]} 55. a6 {[%clk 0:00:09.7]}
55... Rd7+ {[%clk 0:00:08.4]} 56. Ke4 {[%clk 0:00:09.8]} 56... Ke6 {[%clk
0:00:08.8]} 57. Rb1 {[%clk 0:00:08.1]} 57... f5+ {[%clk 0:00:08.9]} 58. Ke3
{[%clk 0:00:09]} 58... Rd6 {[%clk 0:00:09.5]} 59. Rh1 {[%clk 0:00:07.6]} 59...
Rxa6 {[%clk 0:00:08.9]} 60. Rh6+ {[%clk 0:00:08.3]} 60... Bf6 {[%clk 0:00:09.6]}
61. Kd3 {[%clk 0:00:08.8]} 61... Ra4 {[%clk 0:00:09.9]} 62. Ke3 {[%clk
0:00:08.6]} 62... Re4+ {[%clk 0:00:10.3]} 63. Kd3 {[%clk 0:00:08.5]} 63... a5
{[%clk 0:00:11]} 64. Rh7 {[%clk 0:00:08.9]} 64... a4 {[%clk 0:00:11.6]} 65. Ra7
{[%clk 0:00:09.7]} 65... Ke5 {[%clk 0:00:11.3]} 66. Ra5+ {[%clk 0:00:09.3]}
66... Kf4 {[%clk 0:00:11.4]} 67. Ra6 {[%clk 0:00:10.2]} 67... Be5 {[%clk
0:00:11.6]} 68. Ra8 {[%clk 0:00:09.7]} 68... Kf3 {[%clk 0:00:10.7]} 69. Kd2
{[%clk 0:00:09.8]} 69... Bg3 {[%clk 0:00:10.8]} 70. Rf8 {[%clk 0:00:09]} 70...
f4 {[%clk 0:00:11.3]} 71. Ra8 {[%clk 0:00:08.9]} 71... Rd4+ {[%clk 0:00:10.8]}
72. Kc3 {[%clk 0:00:09.1]} 72... Re4 {[%clk 0:00:09.7]} 73. Kd3 {[%clk
0:00:09.5]} 73... Re3+ {[%clk 0:00:09.5]} 74. Kd4 {[%clk 0:00:09.4]} 74... Kg2
{[%clk 0:00:10.2]} 75. Rxa4 {[%clk 0:00:09]} 75... Re2 {[%clk 0:00:10.3]} 76.
Ra8 {[%clk 0:00:07.7]} 76... f3 {[%clk 0:00:10.8]} 77. Kd3 {[%clk 0:00:07.7]}
77... Re7 {[%clk 0:00:10.3]} 78. Rf8 {[%clk 0:00:06.3]} 78... f2 {[%clk
0:00:10.7]} 79. Kd2 {[%clk 0:00:06]} 79... f1=Q {[%clk 0:00:10.4]} 0-1

[Event "Late-Titled-Tuesday-Blitz-December-26-2023"]
[Site "Chess.com"]
[Date "2023.12.26"]
[Round "8"]
[White "yosephtaher"]
[Black "BogdanDeac"]
[Result "0-1"]
[WhiteElo "2926"]
[BlackElo "3013"]
[TimeControl "180+1"]
[EndTime "15:29:06 PST"]
[Termination "BogdanDeac won by resignation"]

1. e4 {[%clk 0:03:00.9]} 1... c5 {[%clk 0:02:57.9]} 2. Nc3 {[%clk 0:02:55.5]}
2... d6 {[%clk 0:02:56.5]} 3. g3 {[%clk 0:02:55.7]} 3... g6 {[%clk 0:02:55.4]}
4. Bg2 {[%clk 0:02:55.6]} 4... Bg7 {[%clk 0:02:56]} 5. d3 {[%clk 0:02:55.9]}
5... Nc6 {[%clk 0:02:56.5]} 6. Be3 {[%clk 0:02:54.7]} 6... e6 {[%clk 0:02:55.7]}
7. Nge2 {[%clk 0:02:54.7]} 7... Nge7 {[%clk 0:02:55.2]} 8. d4 {[%clk 0:02:55.3]}
8... cxd4 {[%clk 0:02:54.8]} 9. Nxd4 {[%clk 0:02:54.6]} 9... a6 {[%clk
0:02:55.2]} 10. Qd2 {[%clk 0:02:54.1]} 10... Ne5 {[%clk 0:02:52.1]} 11. b3
{[%clk 0:02:35.6]} 11... Ng4 {[%clk 0:02:50.9]} 12. Rd1 {[%clk 0:02:26.6]} 12...
Nxe3 {[%clk 0:02:49.2]} 13. Qxe3 {[%clk 0:02:27.5]} 13... Qc7 {[%clk 0:02:49.3]}
14. O-O {[%clk 0:02:25.5]} 14... O-O {[%clk 0:02:47.1]} 15. a4 {[%clk
0:02:18.8]} 15... Rb8 {[%clk 0:02:46.1]} 16. Rc1 {[%clk 0:02:15.8]} 16... Qc5
{[%clk 0:02:37.3]} 17. Rfd1 {[%clk 0:02:13.5]} 17... Rd8 {[%clk 0:02:33.6]} 18.
Nce2 {[%clk 0:02:05.5]} 18... b5 {[%clk 0:01:58.5]} 19. axb5 {[%clk 0:02:03.6]}
19... axb5 {[%clk 0:01:59.4]} 20. c4 {[%clk 0:02:02.9]} 20... bxc4 {[%clk
0:01:57.4]} 21. Rxc4 {[%clk 0:02:03.6]} 21... Qb6 {[%clk 0:01:56.4]} 22. b4
{[%clk 0:01:22.9]} 22... e5 {[%clk 0:01:43.1]} 23. Nc2 {[%clk 0:00:44.4]} 23...
Ba6 {[%clk 0:01:42.1]} 24. Rc3 {[%clk 0:00:33.3]} 24... Qxe3 {[%clk 0:01:27.9]}
25. Rxe3 {[%clk 0:00:34.2]} 25... Bh6 {[%clk 0:01:28.3]} 26. f4 {[%clk
0:00:30.3]} 26... Bxe2 {[%clk 0:01:28.2]} 27. Rxe2 {[%clk 0:00:31]} 27... exf4
{[%clk 0:01:28.9]} 28. gxf4 {[%clk 0:00:31.7]} 28... Bxf4 {[%clk 0:01:28]} 29.
h3 {[%clk 0:00:28.7]} 29... Rdc8 {[%clk 0:01:25.9]} 30. Rb1 {[%clk 0:00:27.5]}
30... Be5 {[%clk 0:01:25]} 31. Kf1 {[%clk 0:00:27.3]} 31... Rc3 {[%clk
0:01:23.6]} 32. Ne3 {[%clk 0:00:26.7]} 32... Bd4 {[%clk 0:01:09.1]} 33. Nd1
{[%clk 0:00:24.4]} 33... Rc4 {[%clk 0:01:01.6]} 34. b5 {[%clk 0:00:24.7]} 34...
Rc5 {[%clk 0:00:57.9]} 35. b6 {[%clk 0:00:23.8]} 35... Rc6 {[%clk 0:00:33.5]}
36. b7 {[%clk 0:00:22.8]} 36... Rc7 {[%clk 0:00:33]} 37. e5 {[%clk 0:00:23.2]}
37... d5 {[%clk 0:00:33.1]} 38. Rd2 {[%clk 0:00:18.5]} 38... Bxe5 {[%clk
0:00:30]} 39. Bxd5 {[%clk 0:00:18.9]} 39... Bf4 {[%clk 0:00:20.2]} 40. Rd4
{[%clk 0:00:02.3]} 40... Nxd5 {[%clk 0:00:20]} 41. Rxd5 {[%clk 0:00:03.2]} 41...
Rcxb7 {[%clk 0:00:20.4]} 42. Rxb7 {[%clk 0:00:03.4]} 42... Rxb7 {[%clk
0:00:21.2]} 43. Nf2 {[%clk 0:00:04]} 43... Kg7 {[%clk 0:00:19.8]} 44. Rd3 {[%clk
0:00:03.4]} 44... Rb1+ {[%clk 0:00:19.3]} 45. Kg2 {[%clk 0:00:03.8]} 45... Rb2
{[%clk 0:00:19.8]} 46. Kf3 {[%clk 0:00:04.4]} 46... Bc7 {[%clk 0:00:19.5]} 47.
Ne4 {[%clk 0:00:02.7]} 47... h6 {[%clk 0:00:13.4]} 48. Rd7 {[%clk 0:00:03.2]}
48... Rc2 {[%clk 0:00:13.7]} 49. h4 {[%clk 0:00:02.9]} 49... Rc4 {[%clk
0:00:12.4]} 50. h5 {[%clk 0:00:02.1]} 50... g5 {[%clk 0:00:11.7]} 51. Ke3 {[%clk
0:00:02.7]} 51... Bf4+ {[%clk 0:00:10.6]} 52. Kd3 {[%clk 0:00:03.2]} 52... Rc6
{[%clk 0:00:10.6]} 53. Ke2 {[%clk 0:00:02.6]} 53... Re6 {[%clk 0:00:10.5]} 54.
Kf3 {[%clk 0:00:03.1]} 54... Kf8 {[%clk 0:00:10.5]} 55. Ra7 {[%clk 0:00:02.7]}
55... Rc6 {[%clk 0:00:09.3]} 56. Rb7 {[%clk 0:00:02.7]} 56... f5 {[%clk
0:00:07.6]} 57. Nf2 {[%clk 0:00:02]} 57... Rc3+ {[%clk 0:00:07.3]} 58. Ke2
{[%clk 0:00:02.7]} 58... Re3+ {[%clk 0:00:06.9]} 59. Kf1 {[%clk 0:00:03]} 59...
Rf3 {[%clk 0:00:06.8]} 60. Ke2 {[%clk 0:00:02.6]} 60... Re3+ {[%clk 0:00:06.8]}
61. Kf1 {[%clk 0:00:03.3]} 61... Be5 {[%clk 0:00:05.3]} 62. Rb6 {[%clk
0:00:02.6]} 62... Bg7 {[%clk 0:00:04.3]} 63. Kg2 {[%clk 0:00:02]} 63... Kf7
{[%clk 0:00:04.3]} 64. Rb7+ {[%clk 0:00:01.4]} 64... Re7 {[%clk 0:00:04.4]} 65.
Rb5 {[%clk 0:00:02.3]} 65... Re5 {[%clk 0:00:04.6]} 66. Rb7+ {[%clk 0:00:02.5]}
66... Kg8 {[%clk 0:00:04.9]} 67. Rb6 {[%clk 0:00:02.6]} 67... Kh7 {[%clk
0:00:04.8]} 68. Nd3 {[%clk 0:00:02.4]} 68... Rd5 {[%clk 0:00:04.9]} 69. Nb4
{[%clk 0:00:01.9]} 69... Rd2+ {[%clk 0:00:04.9]} 70. Kf3 {[%clk 0:00:02.5]}
70... Rb2 {[%clk 0:00:05.5]} 71. Rb7 {[%clk 0:00:03.1]} 71... Kg8 {[%clk
0:00:05.1]} 72. Ke3 {[%clk 0:00:02.3]} 72... Rb3+ {[%clk 0:00:04.8]} 73. Kd2
{[%clk 0:00:02.4]} 73... g4 {[%clk 0:00:05.2]} 74. Kc2 {[%clk 0:00:02.9]} 74...
Rb2+ {[%clk 0:00:05.4]} 75. Kd3 {[%clk 0:00:03.3]} 75... g3 {[%clk 0:00:06]} 76.
Rb8+ {[%clk 0:00:02.8]} 76... Kh7 {[%clk 0:00:06.3]} 0-1

[Event "Late-Titled-Tuesday-Blitz-December-26-2023"]
[Site "Chess.com"]
[Date "2023.12.26"]
[Round "9"]
[White "thechesscorner64"]
[Black "Alex_Banzea"]
[Result "0-1"]
[WhiteElo "2439"]
[BlackElo "2617"]
[TimeControl "180+1"]
[EndTime "15:38:20 PST"]
[Termination "Alex_Banzea won by resignation"]

1. e4 {[%clk 0:03:00.9]} 1... c6 {[%clk 0:03:00.5]} 2. Nf3 {[%clk 0:03:00.8]}
2... d5 {[%clk 0:03:01.4]} 3. d3 {[%clk 0:03:01.2]} 3... g6 {[%clk 0:02:58.8]}
4. Nbd2 {[%clk 0:02:59.3]} 4... Bg7 {[%clk 0:02:57.9]} 5. g3 {[%clk 0:02:58.8]}
5... Nh6 {[%clk 0:02:58.4]} 6. Bg2 {[%clk 0:02:58.7]} 6... O-O {[%clk
0:02:59.1]} 7. O-O {[%clk 0:02:58.8]} 7... f6 {[%clk 0:02:59.3]} 8. Re1 {[%clk
0:02:59]} 8... Nf7 {[%clk 0:02:59.7]} 9. c3 {[%clk 0:02:58]} 9... e5 {[%clk
0:02:59.7]} 10. b4 {[%clk 0:02:56.7]} 10... a5 {[%clk 0:02:49.5]} 11. bxa5
{[%clk 0:02:55.2]} 11... Qxa5 {[%clk 0:02:43.8]} 12. Qc2 {[%clk 0:02:51.5]}
12... Be6 {[%clk 0:02:29.2]} 13. a4 {[%clk 0:02:49]} 13... Nd7 {[%clk
0:02:28.5]} 14. Nb3 {[%clk 0:02:48]} 14... Qc7 {[%clk 0:02:22.1]} 15. a5 {[%clk
0:02:46.4]} 15... Rfe8 {[%clk 0:02:15.7]} 16. Ba3 {[%clk 0:02:42.6]} 16... f5
{[%clk 0:02:12.8]} 17. Ng5 {[%clk 0:02:36.9]} 17... Nxg5 {[%clk 0:02:12.8]} 18.
exd5 {[%clk 0:02:35.1]} 18... Bxd5 {[%clk 0:02:10.3]} 19. Bxd5+ {[%clk 0:02:32]}
19... cxd5 {[%clk 0:02:11.2]} 20. c4 {[%clk 0:02:32.1]} 20... Nf3+ {[%clk
0:02:10.5]} 0-1